Cogmind - Beta 14 @@@ ROGUE MODE // 2024.08.09 @ 13:17:21 Player: P9H Result: Destroyed by as-49088 with Assembled Rifle Performance ------------- Evolutions (0) 0 Regions Visited (2) 400 Robots Destroyed (13) 65 Value Destroyed (314) 314 Prototype IDs (0) 0 Alien Tech Used (0) 0 Bonus (0) 0 TOTAL SCORE: 779 Bonus ------- None Cogmind --------- Core Integrity 0/250 Matter 300/300 Energy 323/325 System Corruption 0% Temperature Cool (0) Movement Rolling (120) Ox2 Location -10/Mines Parts ------- > --- POWER (1) -------- Light Ion Engine > --- PROPULSION (2) --- Armored Wheel Armored Wheel > --- UTILITY (2) ------ High-capacity Storage Unit Large Battery > --- WEAPON (2) ------- Beam Cannon Mini Grenade Launcher > --- INVENTORY (20) --- Ion Engine Light Ion Engine Light Ion Engine Light Ion Engine Wheel Wheel Wheel Compact Wheel Compact Wheel Armored Wheel Heat Sink Heat Sink Sensor Array Tractor Beam Medium Laser Peak State ------------ > --- POWER ------------ Ion Engine > --- PROPULSION ------- Wheel > --- UTILITY ---------- High-capacity Storage Unit Improved Terrain Scanner > --- WEAPON ----------- Light Cannon Bore Cannon > --- INVENTORY -------- Ion Engine Light Ion Engine Light Ion Engine Light Ion Engine Compact Wheel Armored Wheel Armored Wheel Armored Wheel Heat Sink Heat Sink Large Battery Sensor Array Tractor Beam Medium Laser Beam Cannon Mini Grenade Launcher [Rating: 14] Favorites ----------- Power Light Ion Engine Engine Light Ion Engine Propulsion Wheel Wheel Wheel Utility Improved Terrain Scanner Device Improved Terrain Scanner Storage High-capacity Storage Unit Weapon EM Pulse Gun Energy Gun EM Pulse Gun Energy Cannon Beam Cannon Ballistic Gun Assault Rifle Ballistic Cannon Light Cannon Launcher Mini Grenade Launcher Build | -11 -10 -10 ------- Run | Yrd Mat Min Slots Evolved . | . . . Power . | . . . Propulsion . | . . . Utility . | . . . Weapon . | . . . Parts Attached 20 | 7 2 11 Power 4 | 1 . 3 Engine 4 | 1 . 3 Core . | . . . Reactor . | . . . Propulsion 6 | 2 . 4 Treads . | . . . Leg . | . . . Wheel 6 | 2 . 4 Hover . | . . . Flight . | . . . Utility 4 | 2 1 1 Device 1 | 1 . . Storage 3 | 1 1 1 Processor . | . . . Hackware . | . . . Protection . | . . . Artifact . | . . . Weapon 6 | 2 1 3 Energy Gun 1 | 1 . . Energy Cannon 1 | . . 1 Ballistic Gun 1 | 1 . . Ballistic Cannon 2 | . 1 1 Launcher 1 | . . 1 Special Weapon . | . . . Impact Weapon . | . . . Slashing Weapon . | . . . Piercing Weapon . | . . . Special Melee Weapon . | . . . Unidentified Prototypes . | . . . Parts Lost 9 | . . 9 Power 1 | . . 1 Propulsion 4 | . . 4 Utility 1 | . . 1 Weapon 3 | . . 3 Highest Loss Streak 9 | . . 9 To Critical Strikes . | . . . Average Slot Usage (%) 97 | . 100 95 Engine 13 | . 14 13 Wheel 26 | . 28 25 Device 11 | . 14 10 Storage 15 | . 14 16 Energy Gun 11 | . 14 9 Energy Cannon 1 | . . 3 Ballistic Gun 2 | . 6 . Ballistic Cannon 9 | . 7 10 Launcher 1 | . . 3 Peak Build Rating 14 | 9 10 14 Average Rating 9 | 4 9 10 On Entrance 6 | . 9 10 Naked Turns . | . . . Heaviest Build 53 | 13 49 53 Greatest Support 26 | 26 26 26 Greatest Overweight (x) 2 | 2 1 2 Average Overweight (x) . | . . 1 Largest Inventory Capacity 20 | 8 20 20 Average Capacity 15 | 7 11 20 Most Carried 20 | 6 11 20 Average Carried 9 | 2 5 15 Final Capacity 20 | 8 20 20 Final Carried 15 | 2 11 15 Class Distribution -------------------- 84% | Mutant 15% | Scavenger-Mutant Dominant Class ---------------- Mutant | -10/Materials Mutant | -10/Mines Resources | -11 -10 -10 ----------- Run | Yrd Mat Min Matter Collected 524 | 278 81 165 Remotely . | . . . Salvage Created 616 | 133 403 80 Parts 39 | 8 23 8 Haulers Intercepted . | . . . Recyclers Shooed 3 | 1 1 1 Parts Field Recycled . | . . . Retrieved Matter . | . . . Parts Self-Destructed . | . . . Prevented . | . . . Kills | -11 -10 -10 ------- Run | Yrd Mat Min Combat Hostiles Destroyed 13 | . 6 7 Guns 2 | . 2 . Cannons 6 | . 4 2 AOE 5 | . . 5 Classes Destroyed 6 | 2 1 3 Builder 1 | . . 1 Tunneler 2 | 2 . . Recycler 3 | 1 2 . Grunt 6 | . 6 . Demolisher 1 | . . 1 Assembled 6 | . . 6 Best Kill Streak 7 | 3 7 6 Combat Bots Only 6 | . 6 6 Max Kills in Single Turn 3 | 1 1 3 Gunslinging . | . . . Exploded 3 | . . 3 Melee . | . . . Uniques/NPCs Destroyed . | . . . Combat | -11 -10 -10 -------- Run | Yrd Mat Min Hostile Shots Fired 49 | . 15 34 Missed 10 | . 2 8 Damage Taken 973 | . 139 834 Core 252 | . 53 199 Absorbed by Shields . | . . . Core Remaining (%) 100 | 100 . . Volleys Fired 38 | 6 17 15 Largest 2 | 2 2 2 Hottest 92 | 60 75 92 Shots Fired 69 | 12 31 26 Gun 37 | 12 19 6 Cannon 28 | . 12 16 Launcher 4 | . . 4 Special . | . . . Kinetic 32 | 6 14 12 Thermal 4 | . . 4 Explosive 4 | . . 4 Electromagnetic 29 | 6 17 6 Robot Hit Streak 7 | 2 5 7 Robot Miss Streak 5 | 2 5 2 Penetration Max . | . . . Secondary Targets . | . . . Shots Hit Robots 37 | 5 15 17 Core Hits 27 | 3 9 15 Critical Kills . | . . . Critical Parts Destroyed 1 | . . 1 Critical Strikes 1 | . . 1 Destroy 1 | . . 1 Melee Attacks . | . . . Impact . | . . . Slashing . | . . . Piercing . | . . . Sneak Attacks . | . . . Combat Hostiles . | . . . Follow-up Attacks . | . . . Damage Inflicted 808 | 62 212 534 Guns 251 | 62 143 46 Cannons 246 | . 68 178 Explosions 310 | . . 310 Melee . | . . . Ramming 1 | . 1 . Kinetic 224 | 20 79 125 Thermal 53 | . . 53 Explosive 310 | . . 310 Electromagnetic 220 | 42 132 46 Impact . | . . . Slashing . | . . . Piercing . | . . . Highest Corruption . | . . . Average Corruption . | . . . Corruption Purged . | . . . Corruption Blocked . | . . . Overload Shots . | . . . Overflow Damage 10 | . . 10 Projectiles . | . . . Explosions 10 | . . 10 Melee . | . . . Knockbacks 3 | . . 3 Impact . | . . . Kinetic 3 | . . 3 Secondary . | . . . Self-Inflicted Damage 69 | . . 69 Shots 2 | . . 2 Rammed 1 | . 1 . Targets Rammed 1 | . 1 . Kicked . | . . . Crushed . | . . . Highest Temperature 90 | . 90 45 Average Temperature 29 | . 38 17 Received Heat Transfer 78 | . 78 . Siege Activations . | . . . Robots Corrupted . | . . . Combat Hostiles . | . . . Parts Fried . | . . . Impact Corruptions . | . . . Robots Melted . | . . . Combat Hostiles . | . . . Parts Melted . | . . . Heat Transferred 111 | . . 111 Parts Sabotaged . | . . . Parts Stolen . | . . . Parts Stripped . | . . . Power Chain Reactions . | . . . Alert | -11 -10 -10 ------- Run | Yrd Mat Min Peak Influence 200 | 15 200 113 Initial 78 | . 9 78 Average 81 | 5 95 85 Maximum Alert Level 1 | . 1 . Low Security (%) 91 | 100 78 100 Level 1 8 | . 21 . Level 2 . | . . . Level 3 . | . . . Level 4 . | . . . Level 5 . | . . . High Security . | . . . Max Security . | . . . Squads Dispatched 3 | . 3 . Investigation 1 | . 1 . Extermination . | . . . Reinforcement 2 | . 2 . Assault . | . . . Garrison . | . . . Intercept . | . . . Searches Triggered . | . . . Construction Impeded . | . . . Haulers Reinforced . | . . . Active Scanning Responses . | . . . Cargo Convoy Interrupts . | . . . Stealth | -11 -10 -10 --------- Run | Yrd Mat Min Distress Signals . | . . . Communications Jammed . | . . . Distress Signals . | . . . Times Spotted 21 | . 9 12 Peak Tracking Total 5 | . 4 5 Tactical Retreats 2 | . . 2 Traps | -11 -10 -10 ------- Run | Yrd Mat Min Traps Triggered 1 | . 1 . Indirectly . | . . . Trap Hack Attempts . | . . . Triggered . | . . . Disarmed . | . . . Reprogrammed . | . . . Reused . | . . . Traps Extracted . | . . . Installed . | . . . Triggered . | . . . Machines | -11 -10 -10 ---------- Run | Yrd Mat Min Machines Disabled 2 | . 2 . Max in Single Turn 1 | . 1 . Machines Repaired . | . . . Machines Dismantled . | . . . Machines Sabotaged . | . . . Overloaded Fab Kills . | . . . Hacking | -11 -10 -10 --------- Run | Yrd Mat Min Machines Accessed . | . . . Terminals . | . . . Fabricators . | . . . Repair Stations . | . . . Recycling Units . | . . . Scanalyzers . | . . . Garrison Access . | . . . Total Hacks . | . . . Successful . | . . . Failed . | . . . Catastrophic . | . . . Database Lockouts . | . . . Manual . | . . . Terminals . | . . . Fabricators . | . . . Repair Stations . | . . . Recycling Units . | . . . Scanalyzers . | . . . Garrison Access . | . . . Terminal Hacks . | . . . Fabricator Hacks . | . . . Repair Station Hacks . | . . . Recycling Unit Hacks . | . . . Scanalyzer . | . . . Garrison Access Hacks . | . . . Unauthorized Hacks . | . . . Terminals . | . . . Fabricators . | . . . Repair Stations . | . . . Recycling Units . | . . . Scanalyzers . | . . . Garrison Access . | . . . Data Cores Recovered . | . . . Used . | . . . Hacking Detections . | . . . Full Trace Events . | . . . Feedback Events . | . . . Feedback Blocked . | . . . Robot Schematics Acquired . | . . . Robots Built . | . . . Authchips . | . . . Time . | . . . Total Robot Build Rating . | . . . Part Schematics Acquired . | . . . Parts Built . | . . . Authchips . | . . . Time . | . . . Total Part Build Rating . | . . . Parts Repaired . | . . . Time . | . . . Parts Recycled . | . . . Recycled Matter . | . . . Retrieved Matter . | . . . Retrieved Components . | . . . Parts Scanalyzed . | . . . Part Schematics Acquired . | . . . Parts Damaged . | . . . Bothacking | -11 -10 -10 ------------ Run | Yrd Mat Min Used RIF Installer . | . . . Robots Hacked . | . . . Non-combat . | . . . Combat . | . . . Robot Hacks Applied . | . . . Relay Couplers Released . | . . . Fabnet Peak Effective % . | . . . Robots Rewired . | . . . Allies Hacked . | . . . Hacks Repelled . | . . . Allies | -11 -10 -10 -------- Run | Yrd Mat Min Total Allies . | . . . Largest Group . | . . . Highest-Rated Group . | . . . Highest-Rated Ally . | . . . Total Orders . | . . . Ally Attacks . | . . . Total Damage . | . . . Kills . | . . . Allies Corrupted . | . . . Allies Melted . | . . . Intel | -11 -10 -10 ------- Run | Yrd Mat Min Robot Analysis Total . | . . . Derelict Logs Recovered 1 | . . 1 Drone Launches . | . . . Drone Recoveries . | . . . Exploration | -11 -10 -10 ------------- Run | Yrd Mat Min Turns Passed 674 | 62 276 336 Spaces Moved 472 | 37 202 233 Core 14 | 14 . . Treads . | . . . Legs . | . . . Wheels 458 | 23 202 233 Hover . | . . . Flight . | . . . Fastest Speed 50 | 50 90 105 Average Speed 102 | 80 94 113 Slowest Speed 150 | 150 105 120 Overloaded Moves . | . . . Propulsion Burnouts . | . . . Robots Hopped . | . . . Cave-ins Triggered . | . . . Exploration Rate (%) 28 | 3 33 48 Regions Visited 2 Branch Regions 1 Pre-discovered Areas . | . . . Known Exits Taken . | . . . Unknown Exits Taken 2 | 1 1 . Scrap Searched 1 | . . 1 Spaces Dug . | . . . Terrain Destroyed 26 | . . 26 Melee . | . . . Projectile 4 | . . 4 AOE 22 | . . 22 Terrain Rammed . | . . . Walls Destroyed . | . . . Machines Disabled . | . . . Actions | -11 -10 -10 --------- Run | Yrd Mat Min Total 591 | 56 255 280 Wait 27 | . 21 6 Move 470 | 36 201 233 Hop . | . . . Pick Up 32 | 7 11 14 Fast Attach 2 | 2 . . Attach 15 | 5 . 10 Detach . | . . . Swap 3 | . 2 1 Drop 3 | . 2 1 Fire 38 | 6 17 15 Melee . | . . . Ram 1 | . 1 . Kick . | . . . Crush . | . . . Escape Stasis . | . . . Rewire . | . . . Trap . | . . . Miscellaneous . | . . . Route ------- -11/Scrapyard -10/Materials (discovered 2 exits: [*Min] / [Sub]) -10/Mines History --------- Turn | Location | Event 11 | -11/Scrapyard | Discovered new exit (range 15) 63 | -11/Scrapyard | Entered Materials 238 | -10/Materials | Discovered new exit (range 15) 318 | -10/Materials | Build established: Mutant 332 | -10/Materials | Discovered new exit (range 6) 339 | -10/Materials | Entered Mines 340 | -10/Mines | Assembled infested the area 344 | -10/Mines | Learned Materials emergency access door positions 345 | -10/Mines | Assisted by a Guerilla fighting off Assembled 591 | -10/Mines | Core integrity fell below 50% 594 | -10/Mines | Core integrity fell below 20% 621 | -10/Mines | Lost 9 parts (1p4n1u3w) 675 | -10/Mines | Destroyed by as-49088 with Assembled Rifle Last Messages --------------- 00590_ Bore Cannon destroyed. 00593_ Destroyed Asb. Hover Unit. 00593_ as-95301 destroyed. 00593_ as-94410 destroyed. 00593_ as-42693 destroyed. 00599_ as-38295 destroyed. 00611_ as-48686 destroyed. 00611_ as-73349 destroyed. 00617_ Acquired 7 matter. 00621_ Acquired 10 matter. 00627_ Acquired 51 matter. 00629_ Acquired 1 matter. 00631_ The unstable cave ceiling collapses. 00633_ Acquired 41 matter. 00637_ Acquired Com. Wheel. 00650_ Acquired 39 matter. 00659_ Acquired Wheel. 00665_ Acquired Lgt. Ion Engine. 00667_ Acquired Wheel. 00673_ R-06 Scavenger destroyed. Map ----- +----------------------------------------------------+ | ????????????????????????????# ##??#??# #???????#? | | ????????????????????????????# ???????# #????????? | | ???????????????????????????# #???????# #???#????? | | ??????????????????????????# ????????# #????????? | | ?????????????????????????## ????????# ##???????? | | ??????????????????????????# ????????# #?????#??? | | ??????????????????????????# ?????????# #????????? | | ??????????????????????????# ????#????# #?????#??? | | ??????????????????????????## ?????????# #????????? | | ??????????????????????????????????????# #????????? | | ??????????????????????????#???#???????# #???####?? | | ????? ???????????????????#????????????# ##### ##? | | ????????????????????#?????????????????# #? | | ??????? ???????? ? ?#???#?????????????###### ## | | ??????????????????????#?????????####???????## # | | ?????????#??????????#??????????## #????????## | | ???????????????????#???#?????#?# #?????????# | | ??????????????????????#####???## ##????#?#?# # | | ??????????????????????#ggg#?### #?###????# # | | ???????#??????????????# ### #???????## | | ??????????????#???????# ##?####### | | ????????#?????????##### ##### | | ?? ??????########### ## # | | ?????????#!=a*[!*!#% = =*!# ## | | ?????????# a%%| %! %k% = a ##? | | ?????????# %####%! % @ =!! ## #?? | | ?????????# # ## ! #### #?? | | ???? ??#?# ##?## ### #??# #? | | ?????????# #???## ##?# ! #??# # | | ?????????# ##???####??## =% #??## | | ????????## ##????##????### #???### | | ???????? #????????#??#### #?????### | | ?#?????? #?#??????#?## ## ! ##??#?????### | | #???#??## ###???????????# ###???????????? | | ????????# #?????????????# #???????????? | | ?????#??# #??????#??????# ###???????????? | | ????#???# #????#?????#### #?????????????? | | #?#####?# ############ #???#?????????? | | ### ##?# # ##?????????????? | | ### ################# ##??????????????? | | ## #???????????????# "###???????????????? | | # ##??????????????# =## #????????????????? | | # ##?????????????#!%#?# #???????????????? | | ## ##?????????#? !#?? ??????????????? | | #### #??????????#? #??? #?????????????? | | ???###### #????????#??## ??? ##?????????????? | | ?????????# ##????????????####????#??????????????? | | ?#????????####???#???#???#???????????????????????? | | ????????????##???????????????????????????????????? | | ??#??????????????????????????????????????????????? | +----------------------------------------------------+ Best States ------------- Heat Dissipation 25 Energy Generation 12 Energy Capacity 325 Matter Stores 300 Matter Capacity 300 Sight Range 16 Terrain Scan Range 16 Terrain Scan Density 10 Evasion (%) 50 Item Schematics ----------------- None Robot Schematics ------------------ None Fabricated ------------ Nothing Alien Tech Used ----------------- None Achievements -------------- None Challenges ------------ None Game ------ Seed ScatterRainbowCutter Manual? 0 Play Time 00:10:31 Cumulative 19.5 hours Start 2024.08.09 @ 13:09:43 End 2024.08.09 @ 13:17:21 Sessions 1 Manual Loads 0 Difficulty Rogue Special Mode None Game No. 41 Rogue 41 Adventurer 0 Explorer 0 Win Type - Total 0 Types 0/0/0/0/0/0/0/0/0 Lore% 4 Gallery% 21 Achievement% 19 Wizard Run 0 Options --------- Layout 1 ASCII 0 Keyboard 0 Movement Mouse Keybinds 0 Fullscreen 2 Font 32/SmallcapsGlow Map View 50x35 Zoom Use 0% Tactical HUD 1 Map Filters NONE Filters NONE Steam 1 RUN: b2d60ea0-e832-483a-95c2-1c88af508165